[Event "December 5 Late 2023"]
[Site "https://www.chess.com"]
[Date "2023.12.05"]
[Round "1"]
[White "Golubenko, Valentina"]
[Black "Asish Panda"]
[Result "0-1"]
[Board "146"]
[TimeControl "180+1"]
[WhiteFideId "4501993"]
[BlackFideId "45012458"]
[WhiteElo "2224"]
[BlackElo "2587"]
[WhiteTeam "CRO"]
[BlackTeam "IND"]
[WhiteClock "0:00:00"]
[BlackClock "0:00:03"]

1. e4 {[%clk 0:02:57]}  e6 {[%clk 0:02:57]} 2. Nf3 {[%clk 0:02:55]}  d5 {[%clk 0:02:56]} 3. exd5 {[%clk 0:02:55]}  exd5 {[%clk 0:02:56]} 4. d4 {[%clk 0:02:54]}  Nf6 {[%clk 0:02:56]} 5. Bd3 {[%clk 0:02:54]}  Bd6 {[%clk 0:02:57]} 6. O-O {[%clk 0:02:49]}  O-O {[%clk 0:02:57]} 7. h3 {[%clk 0:02:49]}  h6 {[%clk 0:02:57]} 8. c4 {[%clk 0:02:48]}  c6 {[%clk 0:02:55]} 9. Nc3 {[%clk 0:02:47]}  dxc4 {[%clk 0:02:54]} 10. Bxc4 {[%clk 0:02:46]}  Nbd7 {[%clk 0:02:54]} 11. d5 {[%clk 0:02:35]}  Nb6 {[%clk 0:02:52]} 12. Bb3 {[%clk 0:02:33]}  cxd5 {[%clk 0:02:52]} 13. Be3 {[%clk 0:02:30]}  Be6 {[%clk 0:02:49]} 14. Bxb6 {[%clk 0:02:17]}  axb6 {[%clk 0:02:45]} 15. Nd4 {[%clk 0:02:16]}  Rc8 {[%clk 0:02:38]} 16. Re1 {[%clk 0:02:13]}  Re8 {[%clk 0:02:34]} 17. Qf3 {[%clk 0:02:12]}  Bb8 {[%clk 0:02:21]} 18. Ndb5 {[%clk 0:01:54]}  Bd7 {[%clk 0:01:53]} 19. Rad1 {[%clk 0:01:32]}  Bc6 {[%clk 0:01:39]} 20. Nd4 {[%clk 0:01:21]}  Qd6 {[%clk 0:01:33]} 21. g3 {[%clk 0:01:21]}  Re5 {[%clk 0:01:11]} 22. Nf5 {[%clk 0:01:08]}  Qe6 {[%clk 0:01:00]} 23. Rxe5 {[%clk 0:01:02]}  Bxe5 {[%clk 0:00:45]} 24. Nxd5 {[%clk 0:00:40]}  Bxd5 {[%clk 0:00:33]} 25. Bxd5 {[%clk 0:00:38]}  Nxd5 {[%clk 0:00:31]} 26. Rxd5 {[%clk 0:00:37]}  Bxb2 {[%clk 0:00:21]} 27. Kg2 {[%clk 0:00:22]}  Bf6 {[%clk 0:00:19]} 28. Rd6 {[%clk 0:00:21]}  Qe5 {[%clk 0:00:14]} 29. Rxb6 {[%clk 0:00:20]}  Rc3 {[%clk 0:00:12]} 30. Qg4 {[%clk 0:00:16]}  Qd5+ {[%clk 0:00:11]} 31. Kh2 {[%clk 0:00:16]}  Rf3 {[%clk 0:00:03]} 32. Nxh6+ {[%clk 0:00:15]}  Kh7 {[%clk 0:00:03]} 33. Rxf6 {[%clk 0:00:12]}  Rxf6 {[%clk 0:00:03]} 34. f4 {[%clk 0:00:03]}  gxh6 {[%clk 0:00:02]} 35. Qh4 {[%clk 0:00:02]}  Qd2+ {[%clk 0:00:02]} 36. Kh1 {[%clk 0:00:02]}  Qc1+ {[%clk 0:00:02]} 37. Kh2 {[%clk 0:00:03]}  Qc2+ {[%clk 0:00:03]} 38. Kh1 {[%clk 0:00:00]}  Rb6 {[%clk 0:00:03]} 0-1

[Event "December 5 Late 2023"]
[Site "https://www.chess.com"]
[Date "2023.12.05"]
[Round "1"]
[White "Erdogan, Anil Berk"]
[Black "Bullen, Alex"]
[Result "1-0"]
[Board "149"]
[TimeControl "180+1"]
[WhiteFideId "6348173"]
[BlackFideId "1801627"]
[WhiteElo "2575"]
[BlackElo "2214"]
[WhiteTeam "TUR"]
[BlackTeam "WLS"]
[WhiteClock "0:00:16"]
[BlackClock "0:00:23"]

1. e4 {[%clk 0:02:58]}  c6 {[%clk 0:02:57]} 2. d4 {[%clk 0:02:58]}  g6 {[%clk 0:02:57]} 3. c4 {[%clk 0:02:59]}  d5 {[%clk 0:02:57]} 4. exd5 {[%clk 0:02:58]}  cxd5 {[%clk 0:02:58]} 5. Nc3 {[%clk 0:02:57]}  Nf6 {[%clk 0:02:57]} 6. Qb3 {[%clk 0:02:55]}  Bg7 {[%clk 0:02:56]} 7. cxd5 {[%clk 0:02:55]}  Nbd7 {[%clk 0:02:56]} 8. Be2 {[%clk 0:02:55]}  O-O {[%clk 0:02:56]} 9. Bf3 {[%clk 0:02:55]}  Nb6 {[%clk 0:02:55]} 10. Nge2 {[%clk 0:02:55]}  Bg4 {[%clk 0:02:55]} 11. Bxg4 {[%clk 0:02:55]}  Nxg4 {[%clk 0:02:56]} 12. a4 {[%clk 0:02:53]}  Nf6 {[%clk 0:02:47]} 13. Nf4 {[%clk 0:02:37]}  Rc8 {[%clk 0:02:47]} 14. a5 {[%clk 0:02:32]}  Nc4 {[%clk 0:02:47]} 15. Qxb7 {[%clk 0:02:14]}  Rb8 {[%clk 0:02:40]} 16. Qxa7 {[%clk 0:02:08]}  Nxb2 {[%clk 0:02:40]} 17. O-O {[%clk 0:01:56]}  Ng4 {[%clk 0:02:14]} 18. h3 {[%clk 0:01:30]}  Nxf2 {[%clk 0:01:50]} 19. Rxf2 {[%clk 0:01:22]}  Ra8 {[%clk 0:01:42]} 20. Qc5 {[%clk 0:01:21]}  Rc8 {[%clk 0:01:30]} 21. Qb4 {[%clk 0:01:16]}  Rb8 {[%clk 0:01:18]} 22. Rxb2 {[%clk 0:01:04]}  Rxb4 {[%clk 0:01:15]} 23. Rxb4 {[%clk 0:01:05]}  Qd6 {[%clk 0:01:08]} 24. Nd3 {[%clk 0:00:58]}  Rc8 {[%clk 0:01:05]} 25. Bf4 {[%clk 0:00:51]}  Qa6 {[%clk 0:01:00]} 26. Nc5 {[%clk 0:00:50]}  Qf6 {[%clk 0:00:57]} 27. Be5 {[%clk 0:00:46]}  Qh4 {[%clk 0:00:51]} 28. Bxg7 {[%clk 0:00:44]}  Kxg7 {[%clk 0:00:52]} 29. a6 {[%clk 0:00:36]}  Rxc5 {[%clk 0:00:51]} 30. a7 {[%clk 0:00:32]}  Rc8 {[%clk 0:00:39]} 31. Rb8 {[%clk 0:00:18]}  Qxd4+ {[%clk 0:00:39]} 32. Kh1 {[%clk 0:00:19]}  Qxa7 {[%clk 0:00:38]} 33. Rxa7 {[%clk 0:00:18]}  Rxb8 {[%clk 0:00:36]} 34. Rxe7 {[%clk 0:00:18]}  Rb3 {[%clk 0:00:34]} 35. Ne4 {[%clk 0:00:18]}  Rd3 {[%clk 0:00:32]} 36. d6 {[%clk 0:00:18]}  Kf8 {[%clk 0:00:29]} 37. Rd7 {[%clk 0:00:17]}  Rd4 {[%clk 0:00:27]} 38. Nf6 {[%clk 0:00:17]}  Kg7 {[%clk 0:00:25]} 39. Ne8+ {[%clk 0:00:17]}  Kf8 {[%clk 0:00:24]} 40. Nc7 {[%clk 0:00:18]}  f5 {[%clk 0:00:22]} 41. Ne6+ {[%clk 0:00:16]}  Ke8 {[%clk 0:00:23]} 42. Re7# {[%clk 0:00:16]} 1-0

[Event "December 5 Late 2023"]
[Site "https://www.chess.com"]
[Date "2023.12.05"]
[Round "1"]
[White "Przybylski, Wojciech"]
[Black "Adamczyk, Zuzanna"]
[Result "0-1"]
[Board "153"]
[TimeControl "180+1"]
[WhiteFideId "1117599"]
[BlackFideId "1187570"]
[WhiteElo "2569"]
[BlackElo "2207"]
[WhiteTeam "POL"]
[BlackTeam "POL"]
[WhiteClock "0:00:16"]
[BlackClock "0:00:11"]

1. e4 {[%clk 0:02:59]}  d6 {[%clk 0:02:49]} 2. d4 {[%clk 0:02:54]}  Nf6 {[%clk 0:02:50]} 3. Nc3 {[%clk 0:02:53]}  e5 {[%clk 0:02:51]} 4. dxe5 {[%clk 0:02:51]}  dxe5 {[%clk 0:02:52]} 5. Bg5 {[%clk 0:02:50]}  Nbd7 {[%clk 0:02:48]} 6. Bc4 {[%clk 0:02:47]}  Be7 {[%clk 0:02:46]} 7. Nf3 {[%clk 0:02:45]}  O-O {[%clk 0:02:45]} 8. O-O {[%clk 0:02:44]}  c6 {[%clk 0:02:45]} 9. h3 {[%clk 0:02:43]}  Qc7 {[%clk 0:02:46]} 10. a4 {[%clk 0:02:42]}  a5 {[%clk 0:02:46]} 11. Re1 {[%clk 0:02:41]}  Nc5 {[%clk 0:02:43]} 12. Qe2 {[%clk 0:02:41]}  Be6 {[%clk 0:02:30]} 13. Rad1 {[%clk 0:02:39]}  Rfd8 {[%clk 0:02:24]} 14. Bh4 {[%clk 0:02:37]}  h6 {[%clk 0:02:16]} 15. Bg3 {[%clk 0:02:37]}  Rxd1 {[%clk 0:01:40]} 16. Rxd1 {[%clk 0:02:36]}  Nfd7 {[%clk 0:01:40]} 17. Kh2 {[%clk 0:02:21]}  Rd8 {[%clk 0:01:35]} 18. b3 {[%clk 0:02:12]}  Bg5 {[%clk 0:01:29]} 19. Nxg5 {[%clk 0:02:09]}  hxg5 {[%clk 0:01:30]} 20. f3 {[%clk 0:02:08]}  f6 {[%clk 0:01:07]} 21. Bf2 {[%clk 0:02:04]}  Kf7 {[%clk 0:00:59]} 22. Be3 {[%clk 0:01:52]}  Bxc4 {[%clk 0:00:55]} 23. Qxc4+ {[%clk 0:01:51]}  Ne6 {[%clk 0:00:56]} 24. Bc1 {[%clk 0:01:35]}  Nf8 {[%clk 0:00:51]} 25. Rxd8 {[%clk 0:01:29]}  Qxd8 {[%clk 0:00:52]} 26. Be3 {[%clk 0:01:26]}  Ng6 {[%clk 0:00:51]} 27. b4 {[%clk 0:01:24]}  axb4 {[%clk 0:00:37]} 28. Qxb4 {[%clk 0:01:24]}  Qd7 {[%clk 0:00:37]} 29. Qc4 {[%clk 0:01:19]}  Kf8 {[%clk 0:00:32]} 30. a5 {[%clk 0:01:17]}  Nef4 {[%clk 0:00:31]} 31. Bc5+ {[%clk 0:01:14]}  Ne7 {[%clk 0:00:28]} 32. Be3 {[%clk 0:01:04]}  Neg6 {[%clk 0:00:20]} 33. Qf1 {[%clk 0:00:53]}  Kg8 {[%clk 0:00:15]} 34. g3 {[%clk 0:00:50]}  Ne6 {[%clk 0:00:15]} 35. Qc4 {[%clk 0:00:49]}  Kh7 {[%clk 0:00:15]} 36. Kg2 {[%clk 0:00:47]}  Nef4+ {[%clk 0:00:06]} 37. gxf4 {[%clk 0:00:45]}  Nh4+ {[%clk 0:00:07]} 38. Kf2 {[%clk 0:00:43]}  Qxh3 {[%clk 0:00:07]} 39. Qe2 {[%clk 0:00:37]}  gxf4 {[%clk 0:00:06]} 40. Bb6 {[%clk 0:00:35]}  Qg2+ {[%clk 0:00:04]} 41. Ke1 {[%clk 0:00:34]}  Nxf3+ {[%clk 0:00:05]} 42. Qxf3 {[%clk 0:00:22]}  Qxf3 {[%clk 0:00:06]} 43. Kd2 {[%clk 0:00:22]}  Qg2+ {[%clk 0:00:05]} 44. Kd3 {[%clk 0:00:22]}  f3 {[%clk 0:00:06]} 45. Nd1 {[%clk 0:00:22]}  Qe2+ {[%clk 0:00:06]} 46. Kc3 {[%clk 0:00:23]}  Qxd1 {[%clk 0:00:07]} 47. a6 {[%clk 0:00:16]}  bxa6 {[%clk 0:00:08]} 48. Kb4 {[%clk 0:00:16]}  Qd4+ {[%clk 0:00:08]} 49. Bxd4 {[%clk 0:00:16]}  exd4 {[%clk 0:00:09]} 50. Kc5 {[%clk 0:00:15]}  f2 {[%clk 0:00:09]} 51. e5 {[%clk 0:00:14]}  fxe5 {[%clk 0:00:10]} 52. Kxc6 {[%clk 0:00:14]}  f1=Q {[%clk 0:00:10]} 53. Kd5 {[%clk 0:00:15]}  Qb5+ {[%clk 0:00:11]} 54. Ke4 {[%clk 0:00:15]}  a5 {[%clk 0:00:11]} 55. Kf5 {[%clk 0:00:15]}  a4 {[%clk 0:00:12]} 56. c4 {[%clk 0:00:16]}  dxc3 {[%clk 0:00:12]} 57. Ke6 {[%clk 0:00:16]}  c2 {[%clk 0:00:12]} 58. Ke7 {[%clk 0:00:15]}  c1=Q {[%clk 0:00:12]} 59. Kf7 {[%clk 0:00:16]}  Qcc6 {[%clk 0:00:11]} 60. Ke7 {[%clk 0:00:16]}  Qbb7+ {[%clk 0:00:11]} 0-1

[Event "December 5 Late 2023"]
[Site "https://www.chess.com"]
[Date "2023.12.05"]
[Round "1"]
[White "Veljanoski, Andrej"]
[Black "Curtis, John"]
[Result "1-0"]
[Board "155"]
[TimeControl "180+1"]
[WhiteFideId "15003604"]
[BlackFideId "3200256"]
[WhiteElo "2567"]
[BlackElo "2202"]
[WhiteTeam "MKD"]
[BlackTeam "AUS"]
[WhiteClock "0:00:44"]
[BlackClock "0:00:00"]

1. Nf3 {[%clk 0:03:00]}  d5 {[%clk 0:02:59]} 2. b3 {[%clk 0:03:00]}  Nf6 {[%clk 0:02:56]} 3. Bb2 {[%clk 0:03:00]}  e6 {[%clk 0:02:56]} 4. c4 {[%clk 0:03:00]}  Be7 {[%clk 0:02:56]} 5. d3 {[%clk 0:03:00]}  O-O {[%clk 0:02:56]} 6. g3 {[%clk 0:03:01]}  b6 {[%clk 0:02:56]} 7. Bg2 {[%clk 0:03:01]}  Bb7 {[%clk 0:02:56]} 8. O-O {[%clk 0:03:02]}  Nbd7 {[%clk 0:02:56]} 9. Nbd2 {[%clk 0:02:59]}  c5 {[%clk 0:02:55]} 10. Qc2 {[%clk 0:02:48]}  Rc8 {[%clk 0:02:55]} 11. e4 {[%clk 0:02:46]}  d4 {[%clk 0:02:39]} 12. Rae1 {[%clk 0:02:33]}  Nb8 {[%clk 0:02:26]} 13. Ne5 {[%clk 0:02:26]}  Nfd7 {[%clk 0:02:23]} 14. Nxd7 {[%clk 0:02:24]}  Qxd7 {[%clk 0:02:23]} 15. f4 {[%clk 0:02:23]}  Nc6 {[%clk 0:02:18]} 16. Nf3 {[%clk 0:02:23]}  Nb4 {[%clk 0:02:18]} 17. Qb1 {[%clk 0:02:22]}  a5 {[%clk 0:02:12]} 18. a3 {[%clk 0:02:22]}  Nc6 {[%clk 0:02:11]} 19. Bc1 {[%clk 0:02:21]}  f6 {[%clk 0:02:07]} 20. Bh3 {[%clk 0:02:13]}  Ra8 {[%clk 0:02:07]} 21. f5 {[%clk 0:01:52]}  e5 {[%clk 0:02:02]} 22. g4 {[%clk 0:01:52]}  a4 {[%clk 0:01:56]} 23. bxa4 {[%clk 0:01:51]}  Na5 {[%clk 0:01:46]} 24. Qxb6 {[%clk 0:01:44]}  Bc6 {[%clk 0:01:43]} 25. Qb2 {[%clk 0:01:41]}  Rfb8 {[%clk 0:01:37]} 26. Qf2 {[%clk 0:01:33]}  Nb3 {[%clk 0:01:35]} 27. g5 {[%clk 0:01:29]}  Nxc1 {[%clk 0:01:34]} 28. Rxc1 {[%clk 0:01:29]}  Rb3 {[%clk 0:01:23]} 29. Rcd1 {[%clk 0:01:19]}  Rxa4 {[%clk 0:01:17]} 30. Kh1 {[%clk 0:01:18]}  Raxa3 {[%clk 0:01:16]} 31. Qe2 {[%clk 0:01:16]}  Qc7 {[%clk 0:01:09]} 32. Rg1 {[%clk 0:01:14]}  Kf8 {[%clk 0:01:07]} 33. gxf6 {[%clk 0:01:13]}  Bxf6 {[%clk 0:01:07]} 34. Ng5 {[%clk 0:01:13]}  Bxg5 {[%clk 0:00:49]} 35. Rxg5 {[%clk 0:01:13]}  Qa7 {[%clk 0:00:46]} 36. Qf1 {[%clk 0:01:04]}  Qe7 {[%clk 0:00:29]} 37. Rg3 {[%clk 0:00:57]}  Qf6 {[%clk 0:00:27]} 38. Bg2 {[%clk 0:00:56]}  Be8 {[%clk 0:00:21]} 39. Qe2 {[%clk 0:00:54]}  Qh6 {[%clk 0:00:20]} 40. f6 {[%clk 0:00:51]}  gxf6 {[%clk 0:00:19]} 41. Qg4 {[%clk 0:00:51]}  Qg6 {[%clk 0:00:12]} 42. Qe6 {[%clk 0:00:45]}  Qf7 {[%clk 0:00:08]} 43. Qd6+ {[%clk 0:00:45]}  Qe7 {[%clk 0:00:04]} 44. Rg8+ {[%clk 0:00:45]}  Kxg8 {[%clk 0:00:00]} 45. Qxe7 {[%clk 0:00:44]} 1-0

[Event "December 5 Late 2023"]
[Site "https://www.chess.com"]
[Date "2023.12.05"]
[Round "1"]
[White "Mendez Fortes, Eduardo Jesus"]
[Black "Gumugama"]
[Result "1-0"]
[Board "159"]
[TimeControl "180+1"]
[WhiteFideId "3502376"]
[WhiteElo "2561"]
[BlackElo "2177"]
[WhiteTeam "CUB"]
[WhiteClock "0:00:35"]
[BlackClock "0:00:35"]

1. e4 {[%clk 0:03:00]}  c5 {[%clk 0:02:58]} 2. Nf3 {[%clk 0:03:00]}  d6 {[%clk 0:02:59]} 3. d4 {[%clk 0:03:01]}  cxd4 {[%clk 0:02:59]} 4. Nxd4 {[%clk 0:03:02]}  Nf6 {[%clk 0:03:00]} 5. Nc3 {[%clk 0:03:02]}  a6 {[%clk 0:03:00]} 6. Bg5 {[%clk 0:03:03]}  e6 {[%clk 0:03:00]} 7. f4 {[%clk 0:03:02]}  Be7 {[%clk 0:03:00]} 8. Qf3 {[%clk 0:03:02]}  h6 {[%clk 0:03:00]} 9. Bh4 {[%clk 0:03:02]}  Nbd7 {[%clk 0:02:59]} 10. Qg3 {[%clk 0:02:33]}  Qa5 {[%clk 0:02:51]} 11. O-O-O {[%clk 0:02:29]}  Rg8 {[%clk 0:02:42]} 12. f5 {[%clk 0:02:14]}  e5 {[%clk 0:02:38]} 13. Nb3 {[%clk 0:02:12]}  Qc7 {[%clk 0:02:38]} 14. Qd3 {[%clk 0:02:09]}  b5 {[%clk 0:02:37]} 15. Be1 {[%clk 0:02:01]}  Bb7 {[%clk 0:02:36]} 16. Rg1 {[%clk 0:01:52]}  b4 {[%clk 0:02:32]} 17. Nd5 {[%clk 0:01:39]}  Nxd5 {[%clk 0:02:31]} 18. exd5 {[%clk 0:01:40]}  a5 {[%clk 0:02:31]} 19. Nd2 {[%clk 0:01:37]}  Bg5 {[%clk 0:02:15]} 20. Kb1 {[%clk 0:01:37]}  Nc5 {[%clk 0:02:10]} 21. Qf3 {[%clk 0:01:34]}  Ke7 {[%clk 0:01:53]} 22. Nc4 {[%clk 0:01:12]}  Rgc8 {[%clk 0:01:47]} 23. h4 {[%clk 0:01:05]}  Bf6 {[%clk 0:01:46]} 24. g4 {[%clk 0:01:05]}  e4 {[%clk 0:01:45]} 25. Qg3 {[%clk 0:01:03]}  Ba6 {[%clk 0:01:39]} 26. g5 {[%clk 0:01:02]}  hxg5 {[%clk 0:01:03]} 27. hxg5 {[%clk 0:01:02]}  Bxb2 {[%clk 0:01:01]} 28. Nxb2 {[%clk 0:00:57]}  Na4 {[%clk 0:01:00]} 29. f6+ {[%clk 0:00:54]}  Kf8 {[%clk 0:00:53]} 30. fxg7+ {[%clk 0:00:41]}  Kxg7 {[%clk 0:00:53]} 31. Qf2 {[%clk 0:00:39]}  Nc3+ {[%clk 0:00:48]} 32. Bxc3+ {[%clk 0:00:37]}  bxc3 {[%clk 0:00:49]} 33. Qf6+ {[%clk 0:00:34]}  Kf8 {[%clk 0:00:35]} 34. Rh1 {[%clk 0:00:35]} 1-0

[Event "December 5 Late 2023"]
[Site "https://www.chess.com"]
[Date "2023.12.05"]
[Round "1"]
[White "Petersson, Kjell"]
[Black "Mortazavi, Ali"]
[Result "0-1"]
[Board "160"]
[TimeControl "180+1"]
[WhiteFideId "1705148"]
[BlackFideId "401323"]
[WhiteElo "2172"]
[BlackElo "2559"]
[WhiteTeam "SWE"]
[BlackTeam "ENG"]
[WhiteClock "0:00:08"]
[BlackClock "0:00:18"]

1. d4 {[%clk 0:03:00]}  Nf6 {[%clk 0:02:59]} 2. Bf4 {[%clk 0:03:01]}  g6 {[%clk 0:02:58]} 3. Nc3 {[%clk 0:03:00]}  c5 {[%clk 0:02:54]} 4. d5 {[%clk 0:02:55]}  d6 {[%clk 0:02:52]} 5. e4 {[%clk 0:02:55]}  Na6 {[%clk 0:02:51]} 6. Bxa6 {[%clk 0:02:48]}  bxa6 {[%clk 0:02:52]} 7. Qd2 {[%clk 0:02:43]}  Rb8 {[%clk 0:02:47]} 8. Rb1 {[%clk 0:02:25]}  a5 {[%clk 0:02:31]} 9. Nf3 {[%clk 0:02:23]}  Ba6 {[%clk 0:02:31]} 10. h4 {[%clk 0:02:15]}  h5 {[%clk 0:02:26]} 11. Ng5 {[%clk 0:01:53]}  Bg7 {[%clk 0:02:22]} 12. f3 {[%clk 0:01:50]}  O-O {[%clk 0:02:21]} 13. Kf2 {[%clk 0:01:47]}  Rb4 {[%clk 0:02:06]} 14. a3 {[%clk 0:01:46]}  Rd4 {[%clk 0:01:59]} 15. Qc1 {[%clk 0:01:44]}  Nd7 {[%clk 0:01:54]} 16. b3 {[%clk 0:01:36]}  c4 {[%clk 0:01:39]} 17. Be3 {[%clk 0:01:34]}  cxb3 {[%clk 0:01:36]} 18. Rxb3 {[%clk 0:01:23]}  Rc4 {[%clk 0:01:32]} 19. Ne2 {[%clk 0:01:20]}  Qc7 {[%clk 0:01:21]} 20. c3 {[%clk 0:01:18]}  Nc5 {[%clk 0:01:20]} 21. Bxc5 {[%clk 0:01:12]}  Rxc5 {[%clk 0:01:18]} 22. g4 {[%clk 0:00:48]}  Bc4 {[%clk 0:01:08]} 23. Rb2 {[%clk 0:00:43]}  Bxe2 {[%clk 0:01:08]} 24. Rxe2 {[%clk 0:00:41]}  Rxc3 {[%clk 0:01:09]} 25. Qf4 {[%clk 0:00:38]}  Be5 {[%clk 0:01:02]} 26. Qd2 {[%clk 0:00:36]}  hxg4 {[%clk 0:00:36]} 27. fxg4 {[%clk 0:00:35]}  Qd7 {[%clk 0:00:29]} 28. Rg1 {[%clk 0:00:32]}  Rfc8 {[%clk 0:00:27]} 29. h5 {[%clk 0:00:31]}  Qa4 {[%clk 0:00:22]} 30. hxg6 {[%clk 0:00:27]}  fxg6 {[%clk 0:00:22]} 31. Nf3 {[%clk 0:00:20]}  Bg7 {[%clk 0:00:18]} 32. Rge1 {[%clk 0:00:15]}  Rf8 {[%clk 0:00:18]} 33. Re3 {[%clk 0:00:13]}  Rc2 {[%clk 0:00:18]} 34. R1e2 {[%clk 0:00:11]}  Rxd2 {[%clk 0:00:19]} 35. Rxd2 {[%clk 0:00:12]}  Bh6 {[%clk 0:00:17]} 36. g5 {[%clk 0:00:11]}  Bxg5 {[%clk 0:00:18]} 37. Kg2 {[%clk 0:00:08]}  Bxe3 {[%clk 0:00:18]} 0-1

[Event "December 5 Late 2023"]
[Site "https://www.chess.com"]
[Date "2023.12.05"]
[Round "1"]
[White "Soderstrom, Adrian"]
[Black "Clarke, Adani"]
[Result "1-0"]
[Board "163"]
[TimeControl "180+1"]
[WhiteFideId "1745786"]
[BlackFideId "7402082"]
[WhiteElo "2555"]
[BlackElo "2154"]
[WhiteTeam "SWE"]
[BlackTeam "JAM"]
[WhiteClock "0:00:22"]
[BlackClock "0:00:16"]

1. Nf3 {[%clk 0:02:57]}  Nf6 {[%clk 0:02:57]} 2. c4 {[%clk 0:02:56]}  e6 {[%clk 0:02:57]} 3. Nc3 {[%clk 0:02:53]}  d5 {[%clk 0:02:56]} 4. d4 {[%clk 0:02:52]}  Bb4 {[%clk 0:02:54]} 5. Bg5 {[%clk 0:02:38]}  O-O {[%clk 0:02:51]} 6. e3 {[%clk 0:02:33]}  c5 {[%clk 0:02:48]} 7. cxd5 {[%clk 0:02:20]}  cxd4 {[%clk 0:02:46]} 8. Qxd4 {[%clk 0:02:18]}  Bxc3+ {[%clk 0:02:45]} 9. Qxc3 {[%clk 0:02:15]}  Nxd5 {[%clk 0:02:44]} 10. Bxd8 {[%clk 0:01:55]}  Nxc3 {[%clk 0:02:41]} 11. Ba5 {[%clk 0:01:54]}  Nd5 {[%clk 0:02:39]} 12. e4 {[%clk 0:01:53]}  Nf6 {[%clk 0:02:37]} 13. Bd3 {[%clk 0:01:44]}  b6 {[%clk 0:02:35]} 14. Bc3 {[%clk 0:01:43]}  Rd8 {[%clk 0:02:28]} 15. O-O-O {[%clk 0:01:37]}  Bb7 {[%clk 0:02:24]} 16. Bc2 {[%clk 0:01:24]}  Nbd7 {[%clk 0:02:16]} 17. Rd4 {[%clk 0:01:01]}  Nc5 {[%clk 0:01:58]} 18. e5 {[%clk 0:00:54]}  Bxf3 {[%clk 0:01:51]} 19. exf6 {[%clk 0:00:48]}  Rxd4 {[%clk 0:01:35]} 20. Bxd4 {[%clk 0:00:49]}  Bd5 {[%clk 0:01:26]} 21. fxg7 {[%clk 0:00:48]}  Bxg2 {[%clk 0:01:23]} 22. Rg1 {[%clk 0:00:48]}  Be4 {[%clk 0:01:18]} 23. Bxc5 {[%clk 0:00:33]}  Bxc2 {[%clk 0:01:15]} 24. Kxc2 {[%clk 0:00:34]}  Rc8 {[%clk 0:01:12]} 25. b4 {[%clk 0:00:32]}  bxc5 {[%clk 0:01:12]} 26. b5 {[%clk 0:00:32]}  f6 {[%clk 0:01:09]} 27. Kc3 {[%clk 0:00:32]}  Rc7 {[%clk 0:01:00]} 28. a4 {[%clk 0:00:30]}  f5 {[%clk 0:00:45]} 29. Kc4 {[%clk 0:00:29]}  Rc8 {[%clk 0:00:41]} 30. a5 {[%clk 0:00:28]}  Rc7 {[%clk 0:00:40]} 31. f4 {[%clk 0:00:25]}  Rc8 {[%clk 0:00:36]} 32. h4 {[%clk 0:00:25]}  Rc7 {[%clk 0:00:26]} 33. h5 {[%clk 0:00:23]}  h6 {[%clk 0:00:25]} 34. Rg6 {[%clk 0:00:22]}  Rxg7 {[%clk 0:00:21]} 35. Rxg7+ {[%clk 0:00:21]}  Kxg7 {[%clk 0:00:16]} 36. b6 {[%clk 0:00:22]} 1-0

[Event "December 5 Late 2023"]
[Site "https://www.chess.com"]
[Date "2023.12.05"]
[Round "1"]
[White "th3d4rkness"]
[Black "aksuliini1"]
[Result "0-1"]
[Board "164"]
[TimeControl "180+1"]
[WhiteElo "2153"]
[BlackElo "2555"]
[WhiteClock "0:00:55"]
[BlackClock "0:00:46"]

1. e4 {[%clk 0:02:58]}  c6 {[%clk 0:02:59]} 2. d4 {[%clk 0:02:57]}  d5 {[%clk 0:03:00]} 3. e5 {[%clk 0:02:57]}  Bf5 {[%clk 0:02:59]} 4. h4 {[%clk 0:02:56]}  h5 {[%clk 0:02:59]} 5. Bd3 {[%clk 0:02:55]}  Bxd3 {[%clk 0:02:56]} 6. Qxd3 {[%clk 0:02:56]}  e6 {[%clk 0:02:56]} 7. Nf3 {[%clk 0:02:54]}  Qa5+ {[%clk 0:02:55]} 8. c3 {[%clk 0:02:53]}  Qa6 {[%clk 0:02:55]} 9. Qxa6 {[%clk 0:02:46]}  Nxa6 {[%clk 0:02:56]} 10. O-O {[%clk 0:02:45]}  Ne7 {[%clk 0:02:55]} 11. b4 {[%clk 0:02:45]}  Nf5 {[%clk 0:02:55]} 12. a4 {[%clk 0:02:42]}  Be7 {[%clk 0:02:51]} 13. g3 {[%clk 0:02:41]}  Kd7 {[%clk 0:02:45]} 14. Bg5 {[%clk 0:02:41]}  f6 {[%clk 0:02:43]} 15. exf6 {[%clk 0:02:41]}  gxf6 {[%clk 0:02:43]} 16. Bf4 {[%clk 0:02:40]}  Bd6 {[%clk 0:02:34]} 17. Bxd6 {[%clk 0:02:39]}  Nxd6 {[%clk 0:02:35]} 18. Nbd2 {[%clk 0:02:39]}  Nc7 {[%clk 0:02:23]} 19. Rfe1 {[%clk 0:02:37]}  Rhg8 {[%clk 0:02:19]} 20. Kf1 {[%clk 0:02:33]}  b6 {[%clk 0:02:16]} 21. Ke2 {[%clk 0:02:29]}  Rg4 {[%clk 0:02:14]} 22. Kd3 {[%clk 0:02:27]}  Nf5 {[%clk 0:02:06]} 23. Nh2 {[%clk 0:02:23]}  Rgg8 {[%clk 0:01:55]} 24. Ndf1 {[%clk 0:02:22]}  Ne8 {[%clk 0:01:53]} 25. Ne3 {[%clk 0:02:20]}  Nxe3 {[%clk 0:01:44]} 26. Rxe3 {[%clk 0:02:18]}  Nd6 {[%clk 0:01:45]} 27. Nf3 {[%clk 0:02:11]}  Ne4 {[%clk 0:01:42]} 28. Re2 {[%clk 0:02:10]}  c5 {[%clk 0:01:39]} 29. Nd2 {[%clk 0:02:04]}  f5 {[%clk 0:01:26]} 30. Nxe4 {[%clk 0:01:56]}  fxe4+ {[%clk 0:01:27]} 31. Kd2 {[%clk 0:01:51]}  cxd4 {[%clk 0:01:26]} 32. cxd4 {[%clk 0:01:51]}  Rac8 {[%clk 0:01:25]} 33. Rc1 {[%clk 0:01:50]}  Rxc1 {[%clk 0:01:24]} 34. Kxc1 {[%clk 0:01:51]}  Rf8 {[%clk 0:01:19]} 35. Rc2 {[%clk 0:01:49]}  Rf3 {[%clk 0:01:18]} 36. Kd1 {[%clk 0:01:47]}  Rd3+ {[%clk 0:01:17]} 37. Rd2 {[%clk 0:01:46]}  Ra3 {[%clk 0:01:16]} 38. a5 {[%clk 0:01:45]}  bxa5 {[%clk 0:01:16]} 39. bxa5 {[%clk 0:01:45]}  Rxa5 {[%clk 0:01:17]} 40. Ke2 {[%clk 0:01:46]}  Ra4 {[%clk 0:01:16]} 41. Ke3 {[%clk 0:01:45]}  Ra3+ {[%clk 0:01:12]} 42. Kf4 {[%clk 0:01:44]}  Rf3+ {[%clk 0:01:13]} 43. Kg5 {[%clk 0:01:43]}  Rf5+ {[%clk 0:01:13]} 44. Kg6 {[%clk 0:01:43]}  Kc6 {[%clk 0:01:11]} 45. Rc2+ {[%clk 0:01:43]}  Kb6 {[%clk 0:01:10]} 46. Rb2+ {[%clk 0:01:37]}  Kc6 {[%clk 0:01:05]} 47. Rc2+ {[%clk 0:01:37]}  Kb5 {[%clk 0:01:02]} 48. Kh6 {[%clk 0:01:28]}  a5 {[%clk 0:01:01]} 49. Kg6 {[%clk 0:01:25]}  a4 {[%clk 0:01:01]} 50. Rb2+ {[%clk 0:01:15]}  Kc4 {[%clk 0:00:58]} 51. Rb6 {[%clk 0:01:10]}  Rxf2 {[%clk 0:00:55]} 52. Rxe6 {[%clk 0:01:10]}  Kxd4 {[%clk 0:00:52]} 53. Ra6 {[%clk 0:01:08]}  Ra2 {[%clk 0:00:51]} 54. Kxh5 {[%clk 0:01:08]}  e3 {[%clk 0:00:51]} 55. g4 {[%clk 0:01:08]}  Ke5 {[%clk 0:00:50]} 56. Ra8 {[%clk 0:01:08]}  d4 {[%clk 0:00:49]} 57. g5 {[%clk 0:01:08]}  Rg2 {[%clk 0:00:48]} 58. Rxa4 {[%clk 0:01:07]}  e2 {[%clk 0:00:48]} 59. Ra8 {[%clk 0:01:04]}  d3 {[%clk 0:00:48]} 60. Re8+ {[%clk 0:01:04]}  Kd4 {[%clk 0:00:47]} 61. g6 {[%clk 0:00:55]}  d2 {[%clk 0:00:46]} 0-1